bitfinex/quotes_ETHUSD_20250807
["timestamp","ask_amount","ask_price","bid_price","bid_amount"]
[1754581218718,0.1304,3842.2,3842.1,3.53254329]
[1754581218938,0.002,3842.3,3842.2,2.60267555]
[1754581219121,4.014,3842.3,3842.2,3.53247555]
[1754581219316,0.002,3842.3,3842.2,2.60267555]
[1754581219569,1e-08,3842.6,3842.5,2.60247234]
[1754581219858,1e-08,3842.6,3842.5,6.64049706]
[1754581220160,1e-08,3842.6,3842.5,7.67467234]
[1754581221255,1e-08,3842.6,3842.5,7.67367234]
[1754581221454,1e-08,3842.6,3842.5,10.09188327]
[1754581222754,1e-08,3842.6,3842.5,6.08088327]
[1754581223069,1e-08,3842.6,3842.5,2.60247234]
[1754581223952,0.13040001,3842.6,3842.5,2.60247234]
[1754581224272,1.09150001,3842.6,3842.4,2.60252639]
[1754581224457,0.46640001,3842.6,3842.4,2.60252639]
[1754581224659,0.46640001,3842.6,3842.3,2.60258866]
[1754581224660,0.6251,3842.5,3842.3,2.60258866]
[1754581224969,0.4947,3842.4,3841.7,0.1304]
[1754581225180,0.1304,3842.1,3841.6,2.60303622]
[1754581225379,0.55,3842.0,3840.9,0.9298]
[1754581225589,0.1304,3841.5,3841.4,2.60321757]
[1754581225993,0.6251,3841.5,3841.4,2.60321757]
[1754581226489,0.1304,3841.5,3841.4,2.60321757]
[1754581227377,0.1304,3841.5,3841.4,4.05367332]
[1754581227790,0.1304,3841.5,3841.4,3.12387332]
[1754581227989,0.1304,3841.5,3841.4,2.60321757]
[1754581228868,0.1304,3841.5,3841.4,3.05111757]
[1754581229068,0.1304,3841.5,3841.4,3.54171757]
[1754581230297,0.1304,3841.5,3841.4,2.60321757]
[1754581230626,0.1304,3841.5,3840.9,2.60350344]
[1754581230627,0.55,3841.4,3840.9,2.60350344]
[1754581230932,0.55,3841.2,3841.1,2.6033744]
[1754581231436,0.6227,3841.2,3840.9,2.60355215]
[1754581231641,0.9259,3841.1,3840.5,3.49185835]
[1754581231917,0.1304,3840.7,3840.5,3.49185835]
[1754581232126,0.1304,3840.7,3840.6,3.05165982]
[1754581232502,0.1304,3840.7,3840.6,2.60375982]
[1754581233407,0.6227,3840.7,3840.5,3.49185835]
[1754581233604,0.4923,3840.6,3840.5,6.09568597]
[1754581233832,0.564,3840.7,3840.5,6.09568597]
[1754581233833,0.1304,3840.7,3840.6,2.60375982]
[1754581234340,0.6227,3840.7,3840.6,2.60375982]
[1754581234517,0.1304,3840.7,3840.6,2.60375982]
[1754581236008,1.0563,3840.7,3840.6,2.60375982]
[1754581236811,0.6227,3840.7,3840.6,2.60375982]
[1754581237008,4.1414,3840.7,3840.6,2.60375982]
[1754581239065,4.1414,3840.7,3840.5,3.49185835]
[1754581239227,4.1414,3840.7,3839.9,0.001]
[1754581239228,0.96414,3840.6,3840.1,2.60405232]
[1754581239557,0.6804,3840.5,3840.4,2.60383566]
[1754581239759,0.1304,3840.5,3840.4,2.60383566]
[1754581240058,4.011,3840.6,3840.5,2.60382762]
[1754581241058,0.1304,3840.7,3840.6,2.60375982]
[1754581241233,0.1304,3840.7,3840.6,10.13181542]
[1754581241440,4.1434,3841.6,3841.3,2.60328534]
[1754581241659,0.4923,3841.5,3841.4,2.60317577]
[1754581242040,4.1434,3841.6,3841.5,2.60314981]
[1754581242239,4.6357,3841.6,3841.4,2.60321158]
[1754581242563,4.011,3841.5,3841.4,2.60321158]
[1754581243741,4.013,3841.6,3841.5,2.60314981]
[1754581246210,0.002,3841.6,3841.5,2.60314981]
[1754581246356,4.013,3841.6,3841.5,2.60314981]
[1754581248083,4.5053,3841.6,3841.5,2.60314981]
[1754581248250,0.55,3841.5,3841.2,0.1304]
[1754581248451,0.6804,3841.3,3840.7,2.60363341]
[1754581248651,0.1304,3840.7,3840.4,2.6038768]
[1754581248849,4.9359,3840.6,3840.5,2.60382762]
[1754581249465,4.5023,3840.6,3840.5,2.60382762]
[1754581249664,4.01,3840.6,3840.5,4.2065467]
[1754581249874,4.01,3840.6,3840.5,3.67272762]
[1754581250057,4.01,3840.6,3840.5,2.73422762]
[1754581250884,4.01,3840.6,3840.5,3.18212762]
[1754581251084,0.1304,3841.1,3840.5,3.67272762]
[1754581251254,0.002,3841.6,3841.5,2.60314981]
[1754581251587,0.6804,3841.5,3841.3,2.60326226]
[1754581251884,1.4759,3841.4,3841.3,2.60328534]
[1754581252274,0.1304,3841.5,3841.4,2.60321757]
[1754581252456,4.1404,3841.5,3841.4,2.60321757]
[1754581252653,4.6327,3841.5,3841.4,2.60321757]
[1754581253299,5.0663,3841.5,3841.3,2.60328003]
[1754581253617,0.9259,3841.4,3841.3,2.60328003]
[1754581253914,0.4923,3841.4,3841.3,2.60328003]
[1754581254112,4.6904,3841.5,3841.4,2.60321757]
[1754581254396,4.01,3841.5,3841.4,2.60321757]
[1754581255001,0.002,3841.6,3841.5,2.60314981]
[1754581255170,4.012,3841.6,3841.5,2.60314981]
[1754581257386,4.012,3841.6,3841.5,3.18588655]
[1754581258205,4.012,3841.6,3841.5,2.60314981]
[1754581260106,4.5046,3841.6,3841.5,2.60314981]
[1754581260283,0.55,3841.5,3841.0,2.60348867]
[1754581260489,0.55,3841.3,3841.1,2.6033971]
[1754581260698,0.55,3841.1,3840.9,0.001]
[1754581260898,0.6804,3841.0,3840.9,0.001]
[1754581261118,1.6256,3841.0,3840.9,0.001]
[1754581261621,1.6256,3841.0,3840.9,2.60455645]
[1754581261823,2.18916,3841.0,3840.9,0.001]
[1754581262594,7.81232007,3841.0,3840.9,0.001]
[1754581262794,5.18916,3841.0,3840.9,0.001]
[1754581263194,5.75037457,3841.0,3840.9,0.001]
[1754581264818,2.75037457,3841.0,3840.9,0.001]
[1754581265021,2.18681457,3841.0,3840.9,0.001]
[1754581265220,1.73421457,3841.0,3840.9,0.001]
[1754581265528,0.6804,3841.0,3840.9,2.60455645]
[1754581265700,0.56096297,3841.5,3841.4,2.60321757]
[1754581265891,0.002,3841.6,3841.5,2.60314981]
[1754581266096,4.012,3841.6,3841.5,2.60314981]
[1754581266292,4.6924,3841.6,3841.5,2.60314981]
[1754581266894,5.185,3841.6,3841.5,2.60314981]
[1754581267220,6.19856652,3841.6,3841.5,2.60314981]
[1754581267428,0.55,3841.5,3841.4,2.60320863]
[1754581267724,1.0426,3841.5,3841.4,2.60320863]
[1754581268022,1.4952,3841.5,3841.3,2.60326043]
[1754581268221,1.4952,3841.5,3841.2,2.60334047]
[1754581268222,0.55,3841.3,3841.2,2.60334047]
[1754581268423,4.56,3841.3,3841.2,2.60334047]
[1754581268724,20.57580367,3841.3,3840.9,0.001]
[1754581268896,0.55,3841.1,3841.0,2.6034293]
[1754581269324,4.01,3841.1,3841.0,0.65120473]
[1754581269714,4.01,3841.1,3841.0,3.2546934]
[1754581270022,4.01,3841.1,3841.0,3.7291934]
[1754581270226,4.01,3841.1,3841.0,4.1933934]
[1754581272525,0.1304,3841.5,3841.4,2.60321757]
[1754581272526,0.6804,3841.5,3841.4,2.60321757]
[1754581272729,0.002,3841.6,3841.5,2.60314981]
[1754581273026,0.002,3841.6,3841.5,3.54184981]
[1754581273228,0.1304,3842.3,3842.2,2.60267555]
[1754581273419,4.012,3842.4,3842.3,2.60260781]
[1754581275937,5.6376,3842.4,3842.3,2.60260781]
[1754581276371,5.185,3842.4,3842.3,2.60260781]
[1754581276669,4.6924,3842.4,3842.3,2.60260781]
[1754581276970,5.185,3842.4,3842.3,2.60260781]
[1754581278760,4.6924,3842.4,3842.3,2.60260781]
[1754581279074,5.185,3842.4,3842.3,2.60260781]
[1754581279475,4.6924,3842.4,3842.3,2.60260781]
[1754581279681,0.002,3842.4,3842.3,2.60260781]
[1754581279860,4.011,3842.4,3842.3,2.60260781]
[1754581280182,4.011,3842.4,3842.3,3.2300477]
[1754581280183,0.002,3842.4,3842.3,3.2300477]
[1754581280384,0.002,3842.4,3842.3,4.2991477]
[1754581282963,0.002,3842.4,3842.3,7.2991477]
[1754581283168,1e-08,3842.5,3842.4,2.60254007]
[1754581283368,1e-08,3842.5,3842.4,12.22650336]
[1754581283568,1e-08,3842.5,3842.4,8.19247796]
[1754581283780,1e-08,3842.5,3842.4,8.32287796]
[1754581283989,1e-08,3842.5,3842.4,4.85867796]
[1754581284602,1e-08,3842.5,3842.4,5.32287796]
[1754581285103,1e-08,3842.5,3842.4,5.34890336]
[1754581285301,0.002,3842.8,3842.7,2.60233689]
[1754581285500,1e-08,3842.8,3842.7,6.63636025]
[1754581285710,1e-08,3842.8,3842.7,7.67943689]
[1754581285901,1e-08,3842.8,3842.7,5.0771]
[1754581286201,1e-08,3842.8,3842.7,5.10312336]
[1754581286501,1e-08,3842.8,3842.7,10.03168849]
[1754581286703,1e-08,3842.8,3842.7,10.00566513]
[1754581290497,1e-08,3842.8,3842.7,9.06696513]
[1754581290696,1e-08,3842.8,3842.7,5.98816513]
[1754581290978,1e-08,3842.8,3842.7,10.66893689]
[1754581291178,1e-08,3842.9,3842.8,2.60226917]
[1754581291382,1e-08,3842.9,3842.8,6.60926917]
[1754581292112,1e-08,3842.9,3842.8,2.60226917]
[1754581292280,1e-08,3842.9,3842.8,6.60926917]
[1754581292479,1e-08,3842.9,3842.8,8.71841114]
[1754581292675,1e-08,3842.9,3842.8,9.19651114]
[1754581292884,1e-08,3842.9,3842.8,22.221144]
[1754581295356,1e-08,3842.9,3842.8,25.221144]
[1754581297052,1e-08,3842.9,3842.8,24.743044]
[1754581297406,1e-08,3842.9,3842.8,7.26031114]
[1754581297646,1e-08,3842.9,3842.8,11.26631114]
[1754581297942,1e-08,3842.9,3842.8,12.19551114]
[1754581299844,1e-08,3842.9,3842.8,11.71741114]
[1754581300136,0.05264935,3843.7,3843.6,2.60172754]
[1754581300339,0.05264935,3843.7,3843.6,6.60772754]
[1754581300718,0.05264935,3843.7,3843.6,6.73812754]
[1754581301955,0.002,3844.0,3843.9,2.60152449]
[1754581302161,0.002,3844.0,3843.9,6.63353973]
[1754581302314,0.05258467,3844.1,3844.0,2.60145681]
[1754581303218,0.05451999,3844.4,3844.3,2.6012538]
[1754581303760,0.05451999,3844.4,3844.3,2.7316538]
[1754581304255,0.99301999,3844.4,3844.3,2.7316538]
[1754581304419,0.99301999,3844.4,3844.3,6.7366538]
[1754581304619,0.99301999,3844.4,3844.3,6.7227538]
[1754581305220,0.99301999,3844.4,3844.3,2.7177538]
[1754581305418,0.99301999,3844.4,3844.3,2.5873538]
[1754581306169,0.99301999,3844.4,3844.1,2.60133739]
[1754581306170,0.99301999,3844.4,3844.1,2.60138914]
[1754581306466,0.9385,3844.3,3844.1,2.60132754]
[1754581306617,0.9385,3844.2,3844.1,2.60132754]
[1754581306819,0.9385,3844.2,3843.8,2.60159217]
[1754581307019,0.9385,3844.1,3844.0,2.60145368]
[1754581307437,0.9385,3844.1,3843.9,2.60150371]
[1754581307770,0.55,3844.2,3843.6,0.1304]
[1754581307913,0.1304,3844.0,3843.8,2.60157151]
[1754581308352,0.9385,3843.9,3843.8,2.60157151]
[1754581309329,15.4385,3843.9,3843.8,2.60157151]
[1754581310029,0.9385,3843.9,3843.8,2.60157151]
[1754581311264,14.6304,3844.0,3843.8,2.60157151]
[1754581311265,15.1804,3844.0,3843.9,2.60152449]
[1754581311423,0.1304,3844.0,3843.9,2.60152449]
[1754581311620,4.005,3844.3,3844.2,2.60132147]
[1754581311857,0.55,3844.2,3843.8,0.1304]
[1754581312068,2.04877973,3844.1,3844.0,2.60145681]
[1754581312264,4.2158939,3844.1,3844.0,2.60145681]
[1754581312436,0.55,3844.0,3843.9,2.60150245]
[1754581312754,2.04901168,3844.0,3843.9,2.60150245]
[1754581312962,1.4885,3844.0,3843.9,2.60150245]
[1754581313366,2.04906509,3844.0,3843.9,2.60150245]
[1754581313516,1.4885,3844.0,3843.9,2.60150245]
[1754581313943,2.94714896,3844.0,3843.7,2.60161886]
[1754581314254,0.6804,3843.8,3842.6,0.001]
[1754581314447,5.07845628,3843.7,3843.2,2.60195091]
[1754581314649,0.6804,3843.3,3843.2,2.60195964]
[1754581315021,1.6189,3843.3,3843.2,2.60195964]
[1754581315628,1.1711,3843.3,3843.2,2.60195964]
[1754581316452,1.6189,3843.3,3842.7,0.1314]
[1754581316655,1.65039,3843.2,3842.7,0.001]
[1754581316821,0.1304,3842.9,3842.7,2.60331347]
[1754581317020,14.5,3842.8,3842.7,0.001]
[1754581317253,15.4385,3842.8,3842.7,0.001]
[1754581317461,15.4385,3842.8,3842.7,2.60333689]
[1754581317755,14.5,3842.8,3842.7,2.60333689]
[1754581318451,14.9619,3842.8,3842.7,2.60333689]
[1754581318773,15.974,3842.8,3842.7,0.001]
[1754581319065,17.9719,3842.8,3842.7,2.60333689]
[1754581319773,15.974,3842.8,3842.7,2.60333689]
[1754581321858,15.05,3842.8,3842.7,2.60333689]
[1754581322258,14.5,3842.8,3842.7,2.60333689]
[1754581322659,14.9619,3842.8,3842.7,2.60333689]
[1754581322971,0.4619,3842.8,3842.7,2.60333689]
[1754581323167,4.555,3843.0,3842.9,2.60220146]
[1754581323579,19.5169,3843.0,3842.9,2.60220146]
[1754581324160,19.979,3843.0,3842.9,2.60220146]
[1754581324334,21.9769,3843.0,3842.9,2.60220146]
[1754581324532,0.55,3842.9,3842.7,2.6032951]
[1754581324773,1.474,3842.8,3842.7,2.6032951]
[1754581324978,2.54126761,3842.8,3842.7,0.001]
[1754581325685,5.14353678,3842.8,3842.7,0.001]
[1754581325976,5.54126761,3842.8,3842.7,0.001]
[1754581326691,8.70319769,3842.8,3842.7,0.001]
[1754581326851,6.15281103,3842.0,3841.9,0.001]
[1754581327034,3.55,3841.9,3841.1,0.001]
[1754581327232,0.55,3841.6,3841.1,0.001]
[1754581327435,0.55,3841.4,3841.1,0.001]
[1754581327678,0.1304,3841.3,3841.1,2.60440031]
[1754581327983,0.1304,3841.3,3841.1,0.001]
[1754581327984,5.479,3841.2,3841.1,0.001]
[1754581328285,19.979,3841.2,3841.1,0.001]
[1754581328480,22.25025649,3841.2,3841.1,0.001]
[1754581328661,2.60342089,3841.1,3840.8,0.001]
[1754581328840,3.15355645,3840.9,3840.8,0.001]
[1754581329186,7.95246757,3840.9,3840.8,0.001]
[1754581329366,23.37646757,3840.9,3840.8,0.001]
[1754581330846,23.93407788,3840.9,3840.8,0.001]
[1754581331353,27.12280852,3840.9,3840.8,0.001]
[1754581331561,26.37646757,3840.9,3840.8,0.001]
[1754581331779,23.77391112,3840.9,3840.8,0.001]
[1754581332290,22.76181112,3840.9,3840.8,0.001]
[1754581332490,21.506,3840.9,3840.8,0.001]
[1754581332645,24.57145645,3840.9,3840.8,0.001]
[1754581332846,25.58355645,3840.9,3840.8,0.001]
[1754581334379,21.57755645,3840.9,3840.8,0.001]
[1754581334584,22.987,3840.9,3840.8,0.001]
[1754581334763,22.81975312,3840.9,3840.8,0.001]
[1754581334961,20.36975312,3840.9,3840.8,0.001]
[1754581335171,2.60470931,3839.2,3838.7,0.001]
[1754581335392,10.16870931,3839.2,3838.7,0.001]
[1754581335702,5.16580865,3839.2,3838.7,0.001]
[1754581335850,12.28761796,3839.2,3838.7,0.001]
[1754581336585,14.97149724,3839.2,3839.1,1e-08]
[1754581336892,15.52675909,3839.2,3839.1,1e-08]
[1754581337403,14.97149724,3839.2,3839.1,1e-08]
[1754581337555,15.52637236,3839.2,3839.1,1e-08]
[1754581337890,11.47137236,3839.2,3839.1,1e-08]
[1754581338197,15.52823227,3839.2,3839.1,1e-08]
[1754581338361,12.38125299,3839.2,3839.1,1e-08]
[1754581338691,8.89130865,3839.2,3839.1,1e-08]
[1754581339192,12.42001796,3839.2,3839.1,1e-08]
[1754581339865,13.08268307,3839.2,3839.1,1e-08]
[1754581340195,15.65804369,3839.2,3839.1,1e-08]
[1754581340897,11.60104369,3839.2,3839.1,1e-08]
[1754581341077,12.97416441,3839.2,3839.1,1e-08]
[1754581341899,12.05016441,3839.2,3839.1,1e-08]
[1754581342195,12.97416441,3839.2,3839.1,1e-08]
[1754581342565,26.23939002,3839.2,3839.1,1e-08]
[1754581342765,25.99879727,3839.2,3839.1,1e-08]
[1754581342997,28.92326656,3839.2,3839.1,1e-08]
[1754581343304,28.92335114,3839.2,3839.1,1e-08]
[1754581343599,28.92935114,3839.2,3839.1,1e-08]
[1754581343763,24.86635114,3839.2,3839.1,1e-08]
[1754581344170,28.92930433,3839.2,3839.1,1e-08]
[1754581344483,28.92830433,3839.2,3839.1,1e-08]
[1754581344684,24.86630433,3839.2,3839.1,1e-08]
[1754581344872,24.62567655,3839.2,3839.1,1e-08]
[1754581345075,8.07233438,3839.2,3839.1,1e-08]
[1754581345279,1.28430865,3839.2,3839.1,3.52677717]
[1754581345496,5.34630865,3839.2,3839.1,3.52677717]
[1754581345705,1.28430865,3839.2,3839.1,3.52677717]
[1754581346186,5.89730865,3839.2,3839.1,3.52677717]
[1754581346493,5.21790865,3839.2,3839.1,3.52677717]
[1754581346695,1.15590865,3839.2,3839.1,3.52677717]
[1754581346899,5.21790865,3839.2,3839.1,3.52677717]
[1754581347794,1.15590865,3839.2,3839.1,3.52677717]
[1754581347996,1.15590865,3839.2,3839.1,4.15297962]
[1754581348180,1.15590865,3839.2,3839.1,4.28337962]
[1754581348511,4.062,3839.2,3839.1,4.28337962]
[1754581348718,0.002,3839.2,3839.1,4.28337962]
[1754581348904,1e-08,3839.2,3839.1,4.28337962]
[1754581351510,1e-08,3839.2,3839.1,4.30942739]
[1754581353282,1e-08,3839.6,3839.5,2.60450579]
[1754581353522,1e-08,3839.6,3839.5,3.32140142]
[1754581353678,1e-08,3839.6,3839.5,6.32140142]
[1754581353883,1e-08,3839.6,3839.5,7.19305637]
[1754581361449,1e-08,3840.4,3840.3,5.60396323]
[1754581361604,1e-08,3840.4,3840.3,6.16435955]
[1754581361805,1e-08,3840.4,3840.3,7.06205955]
[1754581362404,1e-08,3840.4,3840.3,6.74885955]
[1754581362645,1e-08,3840.4,3840.3,6.29475955]
[1754581363020,1e-08,3840.4,3840.3,7.19245955]
[1754581363405,1e-08,3840.4,3840.3,6.74885955]
[1754581363606,0.46100001,3840.4,3840.3,2.73436323]
[1754581363844,1.49358116,3840.4,3840.3,2.60396323]
[1754581364024,0.93580001,3840.4,3840.3,2.60396323]
[1754581364746,0.46100001,3840.4,3840.3,2.60396323]
[1754581365054,1e-08,3840.4,3840.3,2.60396323]
[1754581365718,0.93580001,3840.4,3840.3,2.60396323]
[1754581367039,0.46100001,3840.4,3840.3,2.60396323]
[1754581367633,1e-08,3840.4,3840.3,2.60396323]
[1754581368750,0.93580001,3840.4,3840.3,2.60396323]
[1754581368924,1e-08,3840.4,3840.3,2.60396323]
[1754581369308,1e-08,3840.4,3840.3,2.73436323]
[1754581369507,1e-08,3840.4,3840.3,4.19454793]
[1754581369708,1e-08,3840.4,3840.3,4.1685083]
[1754581370165,1e-08,3840.4,3840.3,3.7249083]
[1754581370370,1e-08,3840.4,3840.3,3.2708083]
[1754581371140,1e-08,3840.4,3840.3,3.7249083]
[1754581372431,1e-08,3840.4,3840.3,4.1685083]
[1754581372650,1e-08,3840.4,3840.3,3.2708083]
[1754581374171,1e-08,3840.4,3840.3,4.19454793]
[1754581374373,1e-08,3840.4,3840.3,4.1685083]
[1754581374645,1e-08,3840.4,3840.3,3.7249083]
[1754581374848,1e-08,3840.4,3840.3,3.2708083]
[1754581375058,1e-08,3840.4,3840.3,2.73436323]
[1754581375261,0.46100001,3840.4,3840.3,2.73436323]
[1754581375445,0.93580001,3840.4,3840.3,2.73436323]
[1754581375645,0.46100001,3840.4,3840.3,2.73436323]
[1754581375869,1e-08,3840.4,3840.3,2.73436323]
[1754581379682,0.48460001,3840.4,3840.3,2.73436323]
[1754581380368,0.43920001,3840.4,3840.3,2.73436323]
[1754581380577,0.92380001,3840.4,3840.3,2.60396323]
[1754581380780,1.47380001,3840.4,3840.3,2.60396323]
[1754581381121,2.31310046,3840.4,3840.3,2.60396323]
[1754581381246,2.5568597,3840.4,3840.3,2.60396323]
[1754581381579,2.31310046,3840.4,3840.3,2.60396323]
[1754581381765,0.69192046,3840.4,3840.3,2.60396323]
[1754581381939,0.56152046,3840.4,3840.3,2.60396323]
[1754581382139,0.56165153,3840.4,3840.3,2.60396323]
[1754581383184,0.56165153,3840.4,3840.3,3.66816323]
[1754581383391,1e-08,3840.4,3840.3,3.66816323]
[1754581383586,1e-08,3840.4,3840.3,4.29798799]
[1754581383964,1e-08,3840.4,3840.3,4.32402762]
[1754581384490,1e-08,3840.4,3840.3,3.82988799]
[1754581384674,1e-08,3840.4,3840.3,2.73436323]
[1754581384881,0.48460001,3840.4,3840.3,2.73436323]
[1754581385082,0.48460001,3840.4,3840.3,2.60396323]
[1754581385083,1.47380001,3840.4,3840.3,2.60396323]
[1754581385598,1.60420001,3840.4,3840.3,2.60396323]
[1754581385794,1.76462001,3840.4,3840.3,2.60396323]
[1754581385999,1.76462001,3840.4,3840.2,2.60402013]
[1754581386000,0.55,3840.3,3840.2,2.60402013]
[1754581386201,0.29082001,3840.4,3840.0,2.60415323]
[1754581386401,0.13040001,3840.4,3840.3,2.60396323]
[1754581386601,1.1118301,3840.4,3840.3,2.60396323]
[1754581386783,0.55,3840.3,3839.7,0.1304]
[1754581387098,0.1304,3840.2,3839.7,0.1304]
[1754581387477,0.6804,3840.2,3840.1,2.60409885]
[1754581387672,1.165,3840.2,3840.1,2.60409885]
[1754581387999,1.6042,3840.2,3840.1,2.60409885]
[1754581388575,16.1042,3840.2,3840.1,2.60409885]
[1754581394369,0.55,3840.1,3839.9,0.001]
[1754581394577,5.27207034,3840.0,3839.9,0.001]
[1754581394771,6.19587034,3840.0,3839.9,2.60523448]
[1754581394975,7.23965995,3840.0,3839.9,2.60523448]
[1754581395170,8.16345995,3840.0,3839.9,2.60523448]
[1754581395373,8.16345995,3840.0,3839.9,0.001]
[1754581395976,26.79225947,3840.0,3839.9,0.001]
[1754581396393,27.03597481,3840.0,3839.9,0.001]
[1754581396875,37.63114499,3840.0,3839.9,0.001]
[1754581397082,28.97683982,3840.0,3839.9,0.001]
[1754581397275,25.14494428,3840.0,3839.9,0.001]
[1754581397493,29.0497741,3840.0,3839.9,0.001]
[1754581398796,29.1748174,3840.0,3839.9,0.001]
[1754581399112,28.83548971,3840.0,3839.9,0.001]
[1754581400111,24.80548971,3840.0,3839.9,0.001]
[1754581400421,28.83448971,3840.0,3839.9,0.001]
[1754581400778,24.80548971,3840.0,3839.9,0.001]
[1754581401013,28.83348971,3840.0,3839.9,0.001]
[1754581401216,23.13258525,3840.0,3839.9,0.001]
[1754581401516,27.95834195,3840.0,3839.9,0.001]
[1754581401737,28.63321784,3840.0,3839.9,0.001]
[1754581402019,28.08321784,3840.0,3839.9,0.001]
[1754581402188,28.63321784,3840.0,3839.9,0.001]
[1754581402521,28.5076712,3840.0,3839.9,0.001]
[1754581402720,28.50769438,3840.0,3839.9,0.001]
[1754581403320,24.48069438,3840.0,3839.9,0.001]
[1754581403492,28.50769438,3840.0,3839.9,0.001]
[1754581404083,28.50767534,3840.0,3839.9,0.001]
[1754581404493,28.26462661,3840.0,3839.9,0.001]
[1754581404712,28.83033102,3840.0,3839.9,0.001]
[1754581406208,26.10135484,3840.0,3839.9,0.001]
[1754581406416,25.85731341,3840.0,3839.9,0.001]
[1754581406615,20.70965995,3840.0,3839.9,0.001]
[1754581406792,24.73365995,3840.0,3839.9,0.001]
[1754581407586,27.82242661,3840.0,3839.9,0.001]
[1754581407820,28.26162661,3840.0,3839.9,0.001]
[1754581408035,28.06543324,3840.0,3839.9,0.001]
[1754581408187,25.46128827,3840.0,3839.9,0.001]
[1754581408390,20.15965995,3840.0,3839.9,0.001]
[1754581408606,21.6544,3840.0,3839.9,0.001]
[1754581408784,22.2044,3840.0,3839.9,0.001]
[1754581409442,26.44036043,3840.0,3839.9,0.001]
[1754581409723,27.2139398,3840.0,3839.9,0.001]
[1754581410629,3.15443796,3839.6,3839.5,0.001]
[1754581410834,30.39226638,3839.6,3839.5,0.001]
[1754581411002,31.35156638,3839.6,3839.5,0.001]
[1754581411193,45.95594938,3839.6,3839.5,0.001]
[1754581412112,25.34057856,3839.6,3839.5,0.001]
[1754581412391,31.84771473,3839.6,3839.5,0.001]
[1754581412591,32.74184506,3839.6,3839.5,0.001]
[1754581412786,29.5874071,3839.6,3839.5,0.001]
[1754581413222,25.86431728,3839.6,3839.5,0.001]
[1754581413422,27.786,3839.6,3839.5,0.001]
[1754581413723,24.31580684,3839.6,3839.5,0.001]
[1754581414021,28.34580684,3839.6,3839.5,0.4798]
[1754581414321,28.89580684,3839.6,3839.5,0.9104]
[1754581414527,28.89580684,3839.6,3839.5,0.4798]
[1754581414823,48.5384295,3839.6,3839.5,0.001]
[1754581415598,35.52679664,3839.6,3839.5,0.001]
[1754581415802,31.58817564,3839.6,3839.5,0.001]
[1754581416128,35.63017564,3839.6,3839.5,0.001]
[1754581416302,35.63027696,3839.6,3839.5,0.001]
[1754581419195,35.63031687,3839.6,3839.5,0.001]
[1754581419418,35.76071687,3839.6,3839.5,0.001]
[1754581420531,35.75671687,3839.6,3839.5,0.001]
[1754581420733,35.29171687,3839.6,3839.5,0.001]
[1754581421236,31.25371687,3839.6,3839.5,0.001]
[1754581421403,34.79641687,3839.6,3839.5,0.001]
[1754581421907,35.75571687,3839.6,3839.5,0.001]
[1754581422306,35.62843986,3839.6,3839.5,0.001]
[1754581422516,35.75583992,3839.6,3839.5,0.001]
[1754581422715,35.62843986,3839.6,3839.5,0.001]
[1754581423036,35.62543435,3839.6,3839.5,0.001]
[1754581423502,35.62547509,3839.6,3839.5,0.001]
[1754581425346,3.15470931,3839.2,3839.1,1e-08]
[1754581425655,11.45664939,3839.2,3839.1,1e-08]
[1754581425833,11.43697799,3839.2,3839.1,1e-08]
[1754581426809,11.43697799,3839.2,3839.1,0.47880001]
[1754581427841,11.43700403,3839.2,3839.1,0.47880001]
[1754581428550,4.79629472,3839.2,3839.1,0.47880001]
[1754581428715,8.51282379,3839.2,3839.1,0.90940001]
[1754581429040,11.11753282,3839.2,3839.1,0.90940001]
[1754581429569,11.11753282,3839.2,3839.1,0.47880001]
[1754581429773,21.38619953,3839.2,3839.1,0.47880001]
[1754581429941,21.38619953,3839.2,3839.1,1e-08]
[1754581430149,22.28032986,3839.2,3839.1,1e-08]
[1754581431617,21.90931319,3839.2,3839.1,1e-08]
[1754581431848,22.2804478,3839.2,3839.1,1e-08]
[1754581432755,25.98388242,3839.2,3839.1,1e-08]
[1754581432954,26.46268242,3839.2,3839.1,1e-08]
[1754581433153,26.59308242,3839.2,3839.1,1e-08]
[1754581433957,25.62878242,3839.2,3839.1,1e-08]
[1754581434135,12.61498109,3839.2,3839.1,1e-08]
[1754581434336,12.61498109,3839.2,3839.1,0.47880001]
[1754581434531,12.61498109,3839.2,3839.1,1e-08]
[1754581436667,13.57428109,3839.2,3839.1,1e-08]
[1754581436975,26.58508242,3839.2,3839.1,1e-08]
[1754581437777,26.4575136,3839.2,3839.1,1e-08]
[1754581437926,26.58518609,3839.2,3839.1,1e-08]
[1754581438671,12.61108476,3839.2,3839.1,1e-08]
[1754581439369,13.07088476,3839.2,3839.1,1e-08]
[1754581439663,26.51418609,3839.2,3839.1,1e-08]
[1754581440567,26.64803931,3839.2,3839.1,1e-08]
[1754581440871,26.6481296,3839.2,3839.1,1e-08]
[1754581441079,41.1481296,3839.2,3839.1,1e-08]
[1754581441432,41.0142659,3839.2,3839.1,1e-08]
[1754581442665,27.10816457,3839.2,3839.1,1e-08]
[1754581443032,27.10815331,3839.2,3839.1,1e-08]
[1754581443762,23.08915331,3839.2,3839.1,1e-08]
[1754581443982,27.10815331,3839.2,3839.1,1e-08]
[1754581444152,27.56795331,3839.2,3839.1,1e-08]
[1754581444347,3.15491286,3838.9,3838.8,0.4697]
[1754581444666,13.91930581,3838.9,3838.8,0.4697]
[1754581445093,14.38900581,3838.9,3838.8,0.4697]
[1754581445775,6.15498072,3838.8,3838.7,0.001]
[1754581445979,7.08609439,3838.8,3838.7,0.001]
[1754581446567,22.05579439,3838.8,3838.7,0.001]
[1754581446763,22.94992472,3838.8,3838.7,0.001]
[1754581447012,23.84022472,3838.8,3838.7,0.001]
[1754581447314,3.15525218,3838.4,3838.3,0.001]
[1754581447529,24.13783858,3838.4,3838.3,0.001]
[1754581447663,25.13886718,3838.4,3838.3,0.001]
[1754581447862,42.32274646,3838.4,3838.3,0.001]
[1754581448063,43.10580046,3838.4,3838.3,0.001]